bitfinex-derivatives/quotes_BTCF0:USTF0_20230901
["timestamp","ask_amount","ask_price","bid_price","bid_amount"]
[1693583018785,0.96610011,25878.0,25877.0,0.00257961]
[1693583019187,0.96610011,25878.0,25877.0,0.00557961]
[1693583019394,0.95010011,25878.0,25877.0,0.00557961]
[1693583019693,0.97410011,25878.0,25877.0,0.00557961]
[1693583021294,0.78099504,25878.0,25877.0,0.00557961]
[1693583021791,0.97406659,25878.0,25877.0,1.11950669]
[1693583026197,0.78099504,25878.0,25877.0,1.11950669]
[1693583026803,0.97403287,25878.0,25877.0,1.11950669]
[1693583027195,0.97003287,25878.0,25877.0,1.11750669]
[1693583027397,0.97203287,25878.0,25877.0,1.11950669]
[1693583027797,0.77899504,25878.0,25877.0,1.11950669]
[1693583028489,0.75899504,25878.0,25877.0,1.11950669]
[1693583028998,0.75499504,25878.0,25877.0,1.11651083]
[1693583029201,0.77699504,25878.0,25877.0,1.11951083]
[1693583029599,0.75699504,25878.0,25877.0,1.11951083]
[1693583029795,0.77699504,25878.0,25877.0,1.12027083]
[1693583031607,0.77699504,25878.0,25877.0,0.00633961]
[1693583032105,0.75699504,25878.0,25877.0,0.00633961]
[1693583032607,0.75313504,25878.0,25877.0,1.120281]
[1693583032810,0.75313504,25878.0,25877.0,1.17682938]
[1693583033306,0.75313504,25878.0,25877.0,1.23151845]
[1693583033496,0.75313504,25878.0,25877.0,1.17682938]
[1693583033901,0.75313504,25878.0,25877.0,0.00633961]
[1693583034694,0.75313504,25878.0,25877.0,1.12028177]
[1693583035607,0.75313504,25878.0,25877.0,0.00633961]
[1693583036504,0.417,25876.0,25874.0,0.1583]
[1693583036704,0.417,25876.0,25875.0,1.09467551]
[1693583036909,0.834,25876.0,25875.0,1.09467551]
[1693583038310,0.858,25876.0,25875.0,1.09467551]
[1693583038608,1.0510367,25876.0,25875.0,1.09467551]
[1693583038813,1.0310367,25876.0,25875.0,1.09467551]
[1693583039509,1.0350367,25876.0,25875.0,1.09567551]
[1693583040103,1.0350367,25876.0,25875.0,1.09667551]
[1693583041014,0.842,25876.0,25875.0,1.09667551]
[1693583041513,0.425,25876.0,25875.0,1.17322389]
[1693583041905,0.425,25876.0,25875.0,1.22791296]
[1693583057619,0.008,25876.0,25875.0,1.64491296]
[1693583062120,0.008,25876.0,25875.0,2.13826164]
[1693583062326,0.008,25876.0,25875.0,2.96168764]
[1693583064926,0.008,25876.0,25875.0,2.99368764]
[1693583065727,0.008,25876.0,25875.0,2.99210764]
[1693583066823,0.008,25876.0,25875.0,2.75040501]
[1693583067025,0.004,25876.0,25875.0,2.78240501]
[1693583067329,0.008,25876.0,25875.0,2.78240501]
[1693583067926,0.008,25876.0,25875.0,2.74940501]
[1693583068119,0.008,25876.0,25875.0,2.78240501]
[1693583070629,0.008,25876.0,25875.0,2.70605633]
[1693583072629,0.008,25876.0,25875.0,3.08240501]
[1693583072830,0.77109719,25884.0,25876.0,0.01064335]
[1693583073131,0.00386,25884.0,25883.0,0.417]
[1693583073326,0.5751,25887.0,25883.0,1.62133296]
[1693583073327,0.00386,25886.0,25883.0,1.62133296]
[1693583073527,0.00386,25886.0,25885.0,0.417]
[1693583073528,0.21677695,25886.0,25885.0,0.417]
[1693583073728,0.21677695,25886.0,25885.0,1.64180947]
[1693583073933,0.21677695,25886.0,25885.0,0.52823745]
[1693583074719,0.21677695,25886.0,25885.0,0.53123745]
[1693583074933,0.25377695,25886.0,25885.0,0.53123745]
[1693583075831,0.06186,25886.0,25885.0,0.53123745]
[1693583076730,0.02486,25886.0,25885.0,0.52823745]
[1693583076931,0.02686,25886.0,25885.0,0.52823745]
[1693583077235,0.00686,25886.0,25885.0,0.52823745]
[1693583077736,0.42,25886.0,25884.0,0.62904838]
[1693583077926,0.42086,25885.0,25884.0,0.62904838]
[1693583078532,0.42086,25885.0,25884.0,0.68373745]
[1693583079336,0.57876,25885.0,25884.0,0.68373745]
[1693583080840,0.57876,25885.0,25884.0,0.69573745]
[1693583080841,0.57976,25885.0,25884.0,0.69573745]
[1693583081141,0.58076,25885.0,25884.0,0.70573745]
[1693583083644,0.57976,25885.0,25884.0,0.69373745]
[1693583083845,0.58076,25885.0,25884.0,0.70573745]
[1693583087152,0.16376,25885.0,25884.0,0.70573745]
[1693583088637,0.16376,25885.0,25884.0,0.65104838]
[1693583088839,0.16376,25885.0,25884.0,0.70573745]
[1693583089751,0.16376,25885.0,25884.0,0.65104838]
[1693583089947,0.16376,25885.0,25884.0,0.49554838]
[1693583090159,0.58076,25885.0,25884.0,0.022]
[1693583090752,0.60076,25885.0,25884.0,0.022]
[1693583099461,0.5769,25885.0,25884.0,1.13564636]
[1693583099655,0.5769,25885.0,25884.0,1.44794636]
[1693583099856,0.5769,25885.0,25884.0,1.55918381]
[1693583100754,0.1599,25885.0,25884.0,1.97618381]
[1693583102855,0.58076,25885.0,25884.0,1.19033543]
[1693583103166,0.60076,25885.0,25884.0,1.13564636]
[1693583106264,0.60076,25885.0,25884.0,0.022]
[1693583106950,0.79353138,25885.0,25884.0,0.022]
[1693583107965,0.60076,25885.0,25884.0,0.022]
[1693583113272,0.83208566,25885.0,25884.0,0.022]
[1693583113459,0.83208566,25885.0,25884.0,0.00272]
[1693583113773,0.3,25880.0,25877.0,0.1566]
[1693583113974,0.3,25880.0,25874.0,0.417]
[1693583113975,0.00386,25877.0,25874.0,0.417]
[1693583114170,0.00386,25877.0,25875.0,1.11393997]
[1693583114473,0.00386,25875.0,25872.0,0.1503]
[1693583114772,0.00386,25875.0,25872.0,0.1703]
[1693583114773,0.417,25873.0,25872.0,0.1703]
[1693583114973,0.417,25873.0,25872.0,0.1503]
[1693583115965,0.42,25873.0,25872.0,0.1873]
[1693583116767,0.42,25873.0,25872.0,0.24198907]
[1693583116970,0.423,25873.0,25872.0,0.33553745]
[1693583117273,0.423,25873.0,25872.0,0.28084838]
[1693583117468,0.423,25873.0,25872.0,0.33553745]
[1693583117663,0.423,25873.0,25872.0,0.28084838]
[1693583117867,0.423,25873.0,25872.0,0.21401]
[1693583122481,0.42,25873.0,25872.0,0.17701]
[1693583122681,0.45,25873.0,25872.0,0.18001]
[1693583122985,0.447,25873.0,25872.0,0.14301]
[1693583123182,0.491,25873.0,25872.0,0.14601]
[1693583124879,0.491,25873.0,25872.0,0.12673]
[1693583125480,0.491,25873.0,25872.0,0.10774]
[1693583126576,0.074,25873.0,25872.0,0.54474]
[1693583126982,0.074,25873.0,25872.0,0.63597745]
[1693583127183,0.074,25873.0,25872.0,0.52474]
[1693583127378,0.454,25873.0,25872.0,0.12474]
[1693583127579,0.491,25873.0,25872.0,0.12774]
[1693583127783,0.491,25873.0,25872.0,0.10774]
[1693583128682,0.491,25873.0,25872.0,0.08875]
[1693583129495,0.491,25873.0,25872.0,0.14529838]
[1693583129697,0.491,25873.0,25872.0,0.08875]
[1693583135595,0.511,25873.0,25872.0,0.08875]
[1693583135794,0.674,25873.0,25872.0,0.08875]
[1693583144897,0.674,25873.0,25872.0,0.006]
[1693583146296,0.3,25870.0,25868.0,0.1601]
[1693583146495,0.42087,25869.0,25868.0,0.14680999]
[1693583146798,0.42087,25869.0,25864.0,0.417]
[1693583146799,0.00387,25868.0,25864.0,0.49312878]
[1693583146992,0.16457,25868.0,25867.0,0.1536]
[1693583147200,0.58157,25868.0,25867.0,0.1536]
[1693583148006,0.58357,25868.0,25867.0,0.1756]
[1693583148591,0.59957,25868.0,25867.0,0.1556]
[1693583148793,0.00399,25867.0,25863.0,0.07612878]
[1693583148996,0.32,25867.0,25865.0,0.14841]
[1693583149199,0.417,25866.0,25865.0,0.14841]
[1693583149396,0.417,25866.0,25862.0,0.07612878]
[1693583149694,0.417,25863.0,25861.0,0.23772878]
[1693583149894,0.3,25864.0,25861.0,0.14232]
[1693583150100,0.3,25867.0,25862.0,0.417]
[1693583150394,0.3,25867.0,25865.0,0.417]
[1693583150395,0.417,25866.0,25865.0,0.417]
[1693583150602,0.421,25866.0,25865.0,0.49354838]
[1693583150801,0.426,25866.0,25865.0,0.49454838]
[1693583150999,0.426,25866.0,25865.0,0.438]
[1693583151307,0.426,25866.0,25865.0,0.001]
[1693583151894,0.446,25866.0,25865.0,0.001]
[1693583152707,0.442,25866.0,25865.0,0.001]
[1693583153709,0.479,25866.0,25865.0,0.004]
[1693583154100,0.474,25866.0,25865.0,0.003]
[1693583154305,1.674,25866.0,25865.0,0.003]
[1693583154608,2.274,25866.0,25865.0,0.003]
[1693583154908,2.311,25866.0,25865.0,0.006]
[1693583155502,0.3,25863.0,25860.0,0.1504]
[1693583155712,0.3,25863.0,25860.0,0.06284878]
[1693583155713,0.417,25861.0,25860.0,0.06284878]
[1693583155907,0.417,25861.0,25859.0,0.1504]
[1693583156109,0.417,25860.0,25859.0,0.1504]
[1693583156313,0.3202542,25860.0,25859.0,0.1504]
[1693583156803,0.6202542,25860.0,25859.0,0.1504]
[1693583157007,0.6202542,25860.0,25858.0,0.1652]
[1693583157312,0.417,25859.0,25856.0,0.11419317]
[1693583157517,0.417,25857.0,25855.0,0.11419317]
[1693583157812,0.417,25857.0,25855.0,0.10819317]
[1693583157813,0.417,25856.0,25855.0,0.10819317]
[1693583158007,0.417,25856.0,25854.0,0.166]
[1693583158316,0.417,25855.0,25854.0,0.13974]
[1693583158818,0.417,25855.0,25851.0,0.417]
[1693583159011,0.303,25857.0,25852.0,0.11123745]
[1693583159212,0.417,25853.0,25851.0,0.437]
[1693583159411,0.417,25852.0,25851.0,0.49168907]
[1693583159611,0.417,25855.0,25851.0,0.49168907]
[1693583159807,0.417,25855.0,25854.0,0.417]
[1693583160112,0.417,25855.0,25851.0,0.417]
[1693583160313,0.417,25852.0,25851.0,0.57511]
[1693583160610,0.42,25855.0,25851.0,0.5944]
[1693583160813,0.42,25855.0,25854.0,0.454]
[1693583161205,0.42,25856.0,25854.0,0.474]
[1693583161517,0.417,25856.0,25855.0,0.52823745]
[1693583161713,0.417,25856.0,25855.0,0.54823745]
[1693583162111,0.417,25859.0,25855.0,0.54823745]
[1693583162421,0.417,25859.0,25858.0,0.417]
[1693583163123,0.417,25862.0,25858.0,0.437]
[1693583163415,0.417,25859.0,25858.0,0.437]
[1693583163713,0.00058007,25861.0,25859.0,0.57632857]
[1693583163919,0.00058007,25861.0,25860.0,0.52823745]
[1693583164218,0.41758007,25861.0,25860.0,0.54823745]
[1693583164600,0.41758007,25861.0,25860.0,0.49354838]
[1693583165006,0.41758007,25861.0,25860.0,0.52823745]
[1693583165203,0.41758007,25861.0,25860.0,0.54823745]
[1693583165412,0.43658007,25861.0,25860.0,0.55023745]
[1693583165606,0.46158007,25861.0,25860.0,0.55223745]
[1693583165915,0.44458007,25861.0,25860.0,0.57123745]
[1693583166214,0.417,25866.0,25860.0,0.98823745]
[1693583166402,0.417,25866.0,25865.0,0.417]
[1693583166603,0.417,25866.0,25865.0,0.437]
[1693583167006,0.417,25866.0,25865.0,0.02]
[1693583167208,0.417,25866.0,25864.0,0.417]
[1693583167511,0.717,25865.0,25861.0,0.1551]
[1693583167811,0.419,25861.0,25860.0,0.041]
[1693583168013,0.836,25861.0,25860.0,0.041]
[1693583168311,0.417,25861.0,25859.0,0.1646]
[1693583168514,0.417,25860.0,25859.0,0.1646]
[1693583169112,0.417,25860.0,25859.0,0.27583745]
[1693583169307,0.417,25860.0,25859.0,0.22114838]
[1693583170108,0.417,25860.0,25859.0,0.27583745]
[1693583170309,0.417,25860.0,25859.0,0.22114838]
[1693583170517,0.418,25860.0,25859.0,0.22914838]
[1693583170915,0.418,25860.0,25859.0,0.23514838]
[1693583171915,0.418,25860.0,25859.0,0.1786]
[1693583172318,0.418,25860.0,25859.0,0.23514838]
[1693583172510,0.418,25860.0,25859.0,0.25514838]
[1693583172715,0.001,25860.0,25859.0,0.72683745]
[1693583175927,0.417,25867.0,25860.0,0.52823745]
[1693583176124,0.417,25867.0,25866.0,0.417]
[1693583176618,0.417,25867.0,25866.0,0.52823745]
[1693583177922,0.454,25867.0,25866.0,0.53123745]
[1693583178123,0.454,25867.0,25866.0,0.53423745]
[1693583178821,0.454,25867.0,25866.0,0.423]
[1693583179022,0.454,25867.0,25866.0,0.47954838]
[1693583179708,0.454,25867.0,25866.0,0.53423745]
[1693583180318,0.454,25867.0,25866.0,0.47954838]
[1693583181220,0.454,25867.0,25866.0,0.53423745]
[1693583181523,0.454,25867.0,25866.0,0.47954838]
[1693583181720,0.454,25867.0,25866.0,0.53423745]
[1693583183823,0.454,25867.0,25866.0,0.47954838]
[1693583184027,0.454,25867.0,25866.0,0.53423745]
[1693583185620,0.454,25867.0,25866.0,0.006]
[1693583186616,0.474,25867.0,25866.0,0.006]
[1693583191334,0.0133,25866.0,25864.0,0.00057989]
[1693583191534,0.01272012,25864.0,25859.0,0.5816]
[1693583191834,0.417,25861.0,25860.0,0.14797988]
[1693583192137,0.417,25861.0,25859.0,0.5816]
[1693583192334,0.417,25861.0,25859.0,0.69283745]
[1693583192530,0.417,25861.0,25859.0,0.63814838]
[1693583192834,0.417,25861.0,25859.0,0.5816]
[1693583193024,0.417,25860.0,25859.0,0.1646]
[1693583193224,0.417,25860.0,25854.0,1.46317127]
[1693583193225,0.00599,25859.0,25855.0,0.15259302]
[1693583193429,0.00599,25859.0,25854.0,0.417]
[1693583193430,0.00599,25855.0,25854.0,0.56959302]
[1693583193627,0.417,25856.0,25855.0,0.00497511]
[1693583194223,0.437,25856.0,25855.0,0.00497511]
[1693583194528,0.417,25856.0,25855.0,0.00497511]
[1693583194919,0.35894669,25856.0,25855.0,0.06152349]
[1693583195124,0.417,25856.0,25855.0,0.06152349]
[1693583195526,0.42,25856.0,25855.0,0.08083349]
[1693583195833,0.424,25856.0,25855.0,0.10183349]
[1693583196035,0.424,25856.0,25855.0,0.15652256]
[1693583196427,0.4367149,25856.0,25855.0,0.10183349]
[1693583196729,0.424,25856.0,25855.0,0.10183349]
[1693583197330,0.424,25856.0,25855.0,0.15652256]
[1693583197626,0.424,25856.0,25855.0,0.57352256]
[1693583197831,0.4559949,25856.0,25855.0,0.475]
[1693583198929,0.4559949,25856.0,25855.0,0.45571]
[1693583199130,0.4559949,25856.0,25855.0,0.03871]
[1693583199331,0.424,25856.0,25855.0,0.09525838]
[1693583199836,0.424,25856.0,25855.0,0.03871]
[1693583200228,0.4559949,25856.0,25855.0,0.03871]
[1693583201035,0.424,25856.0,25855.0,0.03871]
[1693583201433,0.4759949,25856.0,25855.0,0.03871]
[1693583203434,0.7759949,25856.0,25855.0,0.03871]
[1693583206534,0.3,25853.0,25847.0,0.417]
[1693583206733,0.417,25848.0,25847.0,0.437]
[1693583206938,0.737,25853.0,25847.0,0.437]
[1693583206939,0.417,25850.0,25847.0,0.47354838]
[1693583207240,0.7663,25856.0,25849.0,0.417]
[1693583207241,0.417,25852.0,25849.0,0.417]
[1693583207535,0.417,25852.0,25851.0,0.417]
[1693583207733,0.417,25852.0,25851.0,0.437]
[1693583208040,0.417,25852.0,25851.0,0.54823745]
[1693583208832,0.417,25852.0,25851.0,0.49168907]
[1693583209137,0.421,25852.0,25851.0,0.47268907]
[1693583209337,0.421,25852.0,25851.0,0.418]
[1693583209839,0.421,25852.0,25851.0,0.47268907]
[1693583210431,0.421,25852.0,25851.0,0.52923745]
[1693583211241,0.421,25852.0,25851.0,0.47454838]
[1693583211835,0.425,25852.0,25851.0,0.51054838]
[1693583212033,0.425,25852.0,25851.0,0.56523745]
[1693583213450,0.425,25852.0,25851.0,0.51054838]
[1693583213740,0.425,25852.0,25851.0,0.56523745]
[1693583214737,0.425,25852.0,25851.0,0.50868907]
[1693583214930,0.425,25852.0,25851.0,0.037]
[1693583215144,0.4569949,25852.0,25851.0,0.037]
[1693583215338,0.4769949,25852.0,25851.0,0.037]
[1693583217138,0.4769949,25852.0,25851.0,0.01772]
[1693583218133,0.0332649,25851.0,25849.0,0.00058024]
[1693583218338,0.417,25850.0,25849.0,0.00058024]
[1693583218535,0.00068977,25849.0,25846.0,0.417]
[1693583218745,0.00068977,25846.0,25845.0,0.1506]
[1693583218940,0.417,25846.0,25845.0,0.1506]
[1693583219137,0.417,25846.0,25844.0,0.1551]
[1693583219340,0.417,25845.0,25844.0,0.1551]
[1693583219645,0.417,25845.0,25844.0,0.13543]
[1693583219842,0.417,25845.0,25842.0,0.1509]
[1693583219843,0.8659949,25845.0,25842.0,0.1509]
[1693583220048,0.8659949,25845.0,25842.0,0.1709]
[1693583220049,0.417,25843.0,25842.0,0.1709]
[1693583220237,0.4489949,25843.0,25842.0,0.13162]
[1693583221536,0.01929,25842.0,25838.0,0.11449489]
[1693583221743,0.4489949,25841.0,25840.0,0.39771]
[1693583222454,0.004,25845.0,25841.0,0.3]
[1693583222643,0.004,25845.0,25841.0,0.43449489]
[1693583222841,0.417,25855.0,25845.0,0.98471]
[1693583223042,0.437,25855.0,25854.0,0.417]
[1693583223345,0.437,25855.0,25850.0,0.417]
[1693583223552,0.417,25851.0,25847.0,0.417]
[1693583223741,0.42087,25853.0,25848.0,0.05468907]
[1693583224047,0.417,25848.0,25847.0,0.417]
[1693583224248,0.417,25848.0,25847.0,0.47168907]
[1693583224646,0.417,25848.0,25847.0,0.52823745]
[1693583225037,0.417,25852.0,25847.0,0.54823745]
[1693583225242,0.417,25852.0,25851.0,0.417]
[1693583225445,0.417,25852.0,25851.0,0.52823745]
[1693583226041,0.417,25852.0,25847.0,0.1628]
[1693583226244,0.421,25848.0,25847.0,0.1638]
[1693583226440,0.421,25848.0,25847.0,0.11223745]
[1693583226645,0.421,25848.0,25847.0,0.52923745]
[1693583226646,0.004,25848.0,25847.0,0.52923745]
[1693583226846,0.004,25848.0,25847.0,0.54923745]
[1693583227054,0.004,25848.0,25847.0,0.55223745]
[1693583227451,0.004,25848.0,25847.0,0.53223745]
[1693583227756,0.417,25849.0,25847.0,0.47654838]
[1693583227949,0.437,25849.0,25848.0,0.417]
[1693583228642,0.417,25849.0,25848.0,0.417]
[1693583228841,0.417,25849.0,25847.0,0.004]
[1693583228842,0.437,25849.0,25847.0,0.004]
[1693583229046,0.417,25848.0,25847.0,0.004]
[1693583229245,0.417,25848.0,25847.0,0.06054838]
[1693583229655,0.42,25848.0,25847.0,0.06054838]
[1693583229854,0.42,25848.0,25847.0,0.004]
[1693583230156,0.44,25848.0,25846.0,0.1513]
[1693583230452,0.417,25847.0,25846.0,0.1513]
[1693583231241,0.417,25847.0,25846.0,0.20784838]
[1693583231446,0.417,25847.0,25846.0,0.28253745]
[1693583231846,0.417,25847.0,25846.0,0.22784838]
[1693583232247,0.437,25847.0,25846.0,0.13202]
[1693583232446,0.01499001,25846.0,25845.0,0.012]
[1693583232645,0.41999001,25845.0,25840.0,0.11449489]
[1693583232855,0.417,25841.0,25840.0,0.02]
[1693583233046,0.32019588,25841.0,25840.0,0.07354838]
[1693583233658,0.32406588,25841.0,25839.0,0.53149489]
[1693583233957,0.01926999,25840.0,25839.0,0.53149489]
[1693583234360,0.32406588,25841.0,25839.0,0.58804327]
[1693583234558,0.34346587,25841.0,25840.0,0.001]
[1693583234762,0.32419588,25841.0,25840.0,0.24673234]
[1693583236359,0.32819588,25841.0,25840.0,0.13223745]
[1693583236551,0.32819588,25841.0,25840.0,0.24673234]
[1693583236758,0.32419588,25841.0,25840.0,0.24573234]
[1693583236962,0.32419588,25841.0,25840.0,0.66273234]
[1693583237259,0.004,25841.0,25840.0,0.22573234]
[1693583237463,0.008,25841.0,25840.0,0.22673234]
[1693583238360,0.011,25841.0,25840.0,0.22773234]
[1693583238562,0.008,25841.0,25840.0,0.22773234]
[1693583239261,0.011,25841.0,25840.0,0.22773234]
[1693583239860,0.008,25841.0,25840.0,0.22773234]
[1693583240057,0.01729,25840.0,25839.0,0.11449489]
[1693583240259,0.6397,25841.0,25839.0,0.09720489]
[1693583240557,0.04226999,25840.0,25839.0,0.07822488]
[1693583240761,0.02,25840.0,25839.0,0.07822488]
[1693583241260,0.6197,25841.0,25839.0,0.11123745]
[1693583241464,0.6267,25841.0,25839.0,0.003]
[1693583241657,0.6307,25841.0,25839.0,0.009]
[1693583241856,0.6307,25841.0,25840.0,0.11123745]
[1693583242249,0.6267,25841.0,25840.0,0.11123745]
[1693583242859,0.6307,25841.0,25840.0,0.11123745]
[1693583243058,0.007,25841.0,25840.0,0.11123745]
[1693583243865,0.011,25841.0,25840.0,0.11423745]
[1693583244566,0.011,25841.0,25840.0,0.11723745]
[1693583245070,0.6197,25850.0,25841.0,0.022]
[1693583245367,0.6197,25850.0,25845.0,0.6197]
[1693583245559,0.6197,25850.0,25845.0,0.6397]
[1693583245761,0.1662,25851.0,25848.0,0.6197]
[1693583245962,0.1862,25851.0,25849.0,0.11123745]
[1693583246162,0.6197,25853.0,25848.0,0.6197]
[1693583246469,0.62357,25853.0,25848.0,0.6397]
[1693583246656,0.00058027,25852.0,25848.0,0.6397]
[1693583246860,0.00058027,25852.0,25849.0,0.11123745]
[1693583247064,0.6197,25851.0,25847.0,0.6197]
[1693583247263,0.6197,25851.0,25848.0,0.13123745]
[1693583247464,0.6197,25851.0,25848.0,0.02]
[1693583247655,0.63896999,25851.0,25848.0,0.021]
[1693583247964,0.036,25850.0,25849.0,0.05654838]
[1693583248365,0.6217,25851.0,25849.0,0.05468907]
[1693583248566,0.6217,25851.0,25849.0,0.05654838]
[1693583248757,0.64096999,25851.0,25848.0,0.007]
[1693583248958,0.002,25850.0,25849.0,0.006]
[1693583249360,0.04126999,25850.0,25849.0,0.006]
[1693583249561,0.65896999,25850.0,25849.0,0.001]
[1693583250068,0.81266999,25850.0,25849.0,0.001]
[1693583250456,0.81366999,25850.0,25849.0,0.002]
[1693583251367,0.81566999,25850.0,25849.0,0.007]
[1693583251672,0.3,25849.0,25847.0,0.00058027]
[1693583251866,0.01870973,25847.0,25841.0,0.022]
[1693583252072,0.6197,25843.0,25841.0,0.00329027]
[1693583252266,0.6397,25843.0,25841.0,0.00329027]
[1693583252567,0.6197,25843.0,25841.0,0.00329027]
[1693583252964,0.6197,25843.0,25842.0,0.05468907]
[1693583253264,0.004,25843.0,25842.0,0.05468907]
[1693583253470,0.004,25843.0,25842.0,0.13123745]
[1693583253970,0.003,25843.0,25842.0,0.13123745]
[1693583254666,0.007,25843.0,25842.0,0.13223745]
[1693583255369,0.006,25843.0,25842.0,0.13223745]
[1693583255869,0.006,25843.0,25842.0,0.11223745]
[1693583256071,0.007,25843.0,25842.0,0.13823745]
[1693583256872,0.005,25843.0,25842.0,0.13823745]
[1693583257771,0.005,25843.0,25842.0,0.11823745]
[1693583259160,0.01229,25842.0,25841.0,0.00329027]
[1693583259364,0.00899974,25841.0,25839.0,0.1582]
[1693583259572,0.6247,25843.0,25839.0,0.14920026]
[1693583259762,0.6247,25843.0,25840.0,0.05468907]
[1693583259763,0.6447,25843.0,25840.0,0.05468907]
[1693583259959,0.6447,25843.0,25841.0,0.05654838]
[1693583260163,0.6447,25843.0,25839.0,0.14920026]
[1693583260363,0.004,25841.0,25840.0,0.05468907]
[1693583260568,0.004,25841.0,25840.0,0.05654838]
[1693583260766,0.008,25841.0,25840.0,0.05654838]
[1693583260973,0.008,25841.0,25840.0,0.11123745]
[1693583261266,0.004,25841.0,25840.0,0.11123745]
[1693583261459,0.03625999,25841.0,25839.0,0.20674864]
[1693583261662,0.03625999,25841.0,25839.0,0.15020026]
[1693583261962,0.04025999,25841.0,25839.0,0.15020026]
[1693583262270,0.004,25841.0,25840.0,0.05468907]
[1693583262673,0.004,25841.0,25840.0,0.11123745]
[1693583263171,0.008,25841.0,25840.0,0.11123745]
[1693583264271,0.008,25841.0,25840.0,0.11223745]
[1693583265067,0.004,25841.0,25840.0,0.11223745]
[1693583265373,0.007,25841.0,25840.0,0.11323745]
[1693583265962,0.007,25841.0,25840.0,0.13323745]
[1693583266671,0.007,25841.0,25840.0,0.67524554]
[1693583267069,0.007,25841.0,25840.0,0.99494554]
[1693583267264,0.007,25841.0,25840.0,0.55153745]
[1693583268063,0.007,25841.0,25840.0,0.79355042]
[1693583268261,0.007,25841.0,25840.0,0.55153745]
[1693583268874,0.007,25841.0,25840.0,0.79355157]
[1693583269072,0.007,25841.0,25840.0,0.55153745]
[1693583269773,0.007,25841.0,25840.0,0.79355052]
[1693583270475,0.007,25841.0,25840.0,0.77355052]
[1693583270679,0.007,25841.0,25840.0,0.79355052]
[1693583271172,0.45755999,25841.0,25840.0,0.002]
[1693583272872,0.47755999,25841.0,25840.0,0.002]
[1693583273769,0.45755999,25841.0,25840.0,0.002]
[1693583273975,0.47755999,25841.0,25840.0,0.002]
[1693583274776,0.48142999,25841.0,25840.0,0.002]
[1693583276477,0.47755999,25841.0,25840.0,0.002]
[1693583278586,0.48142999,25841.0,25840.0,0.002]
[1693583278976,0.47755999,25841.0,25840.0,0.002]
[1693583279684,0.00387,25835.0,25834.0,0.07677148]
[1693583279891,0.02316,25834.0,25833.0,0.07677148]
[1693583280086,0.42217,25834.0,25833.0,0.07748148]
[1693583280287,0.45442999,25834.0,25833.0,0.05850148]
[1693583280787,0.42217,25834.0,25833.0,0.07468907]
[1693583281192,0.42217,25834.0,25833.0,0.11123745]
[1693583281383,0.4183,25834.0,25833.0,0.02]
[1693583281586,0.4223,25834.0,25831.0,0.00012]
[1693583281786,0.4183,25832.0,25831.0,0.26220109]
[1693583282497,0.4183,25832.0,25831.0,0.31689016]
[1693583282888,0.4183,25832.0,25831.0,0.37343854]
[1693583283083,0.4223,25832.0,25831.0,0.37343854]
[1693583283698,0.4223,25832.0,25831.0,0.35444854]
[1693583284497,0.4263,25832.0,25831.0,0.29790016]
[1693583284790,0.4263,25832.0,25831.0,0.35444854]
[1693583285291,0.4263,25832.0,25831.0,0.24321109]
[1693583285492,0.4263,25832.0,25831.0,0.22321109]
[1693583285895,0.4263,25832.0,25831.0,0.27790016]
[1693583286101,0.4263,25832.0,25831.0,0.33444854]
[1693583287000,0.4263,25832.0,25831.0,0.75274854]
[1693583287992,0.4263,25832.0,25831.0,0.33444854]
[1693583289698,1.2,25843.0,25831.0,0.33444854]
[1693583289699,0.4183,25840.0,25833.0,0.3]
[1693583289902,0.4183,25843.0,25839.0,0.4183]
[1693583290198,0.4183,25843.0,25842.0,0.4183]
[1693583290604,0.4183,25843.0,25842.0,0.47298907]
[1693583291103,0.4483,25843.0,25842.0,0.52953745]
[1693583291802,0.4543,25843.0,25842.0,0.52953745]
[1693583292192,0.48655999,25843.0,25842.0,0.52953745]
[1693583292393,0.4903,25843.0,25842.0,0.52953745]
[1693583296902,0.4903,25843.0,25842.0,0.11123745]
[1693583299506,0.4903,25843.0,25837.0,0.97362]
[1693583299507,0.52255999,25843.0,25837.0,0.4183]
[1693583299708,0.00387,25837.0,25835.0,0.1585]
[1693583299910,0.4183,25836.0,25835.0,0.05654838]
[1693583300414,0.4183,25836.0,25835.0,0.11123745]
[1693583301803,0.4223,25836.0,25835.0,0.11423745]
[1693583302612,0.008,25836.0,25835.0,0.55553745]
[1693583302813,0.008,25836.0,25835.0,0.13723745]
[1693583302814,0.4263,25836.0,25835.0,0.13723745]
[1693583303007,0.4263,25836.0,25835.0,0.006]
[1693583303713,0.4263,25836.0,25835.0,0.11723745]
[1693583306413,0.43017,25836.0,25835.0,0.11723745]
[1693583306715,0.008,25836.0,25835.0,0.55553745]
[1693583307812,0.008,25836.0,25835.0,1.37926316]
[1693583308112,0.4183,25841.0,25835.0,1.37926316]
[1693583308113,0.4183,25844.0,25840.0,0.3]
[1693583308302,0.4183,25844.0,25843.0,0.4183]
[1693583308503,0.42217,25847.0,25843.0,0.4383]
[1693583308809,0.42217,25847.0,25845.0,0.4183]
[1693583309214,0.42217,25847.0,25846.0,0.05468907]
[1693583309916,0.00387,25846.0,25845.0,0.4183]
[1693583310308,0.00387,25846.0,25845.0,0.52953745]
[1693583311209,0.00787,25846.0,25845.0,0.57053745]
[1693583311612,0.00587,25846.0,25845.0,0.54853745]
[1693583311810,0.00587,25846.0,25845.0,0.55753745]